Cogmind - Beta 12 @@@ ROGUE MODE // 2024.02.27 @ 00:06:09 Player: Takagiro Result: Destroyed by as-92815 with Assembled Blade Performance ------------- Evolutions (1) 500 Regions Visited (3) 600 Robots Destroyed (10) 50 Value Destroyed (274) 274 Prototype IDs (1) 20 Alien Tech Used (0) 0 Bonus (200) 200 TOTAL SCORE: 1644 Bonus ------- Pacifist 200 Cogmind --------- Core Integrity 0/400 Matter 290/300 Energy 82/100 System Corruption 0% Temperature Cool (12) Movement Core (1400) Ox27 Location -9/Mines Parts ------- > --- POWER (2) -------- (None) > --- PROPULSION (2) --- (None) > --- UTILITY (3) ------ Huge Storage Unit > --- WEAPON (2) ------- Advanced Beam Cannon > --- INVENTORY (25) --- Light Ion Engine Improved Ion Engine Improved Ion Engine Aluminum Leg Aluminum Leg Light Armor Plating Small Laser Improved Assault Rifle Improved Light Cannon Peak State ------------ > --- POWER ------------ Ion Engine Improved Ion Engine > --- PROPULSION ------- Compact Wheel > --- UTILITY ---------- Huge Storage Unit Core Shielding Utility Shielding > --- WEAPON ----------- Autogun Autogun > --- INVENTORY -------- Light Ion Engine Improved Ion Engine Improved Ion Engine Aluminum Leg Aluminum Leg Light Armor Plating Small Laser Advanced Beam Cannon Improved Assault Rifle Improved Light Cannon [Rating: 12] Favorites ----------- Power Ion Engine Engine Ion Engine Propulsion Compact Wheel Wheel Compact Wheel Utility Utility Shielding Storage Small Storage Unit Protection Utility Shielding Weapon Assault Rifle Energy Cannon Advanced Beam Cannon Ballistic Gun Assault Rifle Build | -11 -10 -9 -9 ------- Run | Jun Mat Mat Min Slots Evolved 2 | . . 2 . Power 1 | . . 1 . Propulsion . | . . . . Utility 1 | . . 1 . Weapon . | . . . . Parts Attached 14 | 6 . 4 4 Power 3 | 1 . 1 1 Engine 3 | 1 . 1 1 Core . | . . . . Reactor . | . . . . Propulsion 2 | 2 . . . Treads . | . . . . Leg . | . . . . Wheel 2 | 2 . . . Hover . | . . . . Flight . | . . . . Utility 4 | 1 . 3 . Device . | . . . . Storage 2 | 1 . 1 . Processor . | . . . . Hackware . | . . . . Protection 2 | . . 2 . Artifact . | . . . . Weapon 5 | 2 . . 3 Energy Gun . | . . . . Energy Cannon 1 | . . . 1 Ballistic Gun 4 | 2 . . 2 Ballistic Cannon . | . . . . Launcher . | . . . . Special Weapon . | . . . . Impact Weapon . | . . . . Slashing Weapon . | . . . . Piercing Weapon . | . . . . Special Melee Weapon . | . . . . Unidentified Prototypes . | . . . . Parts Lost 11 | . . 2 9 Power 3 | . . 1 2 Propulsion 2 | . . 1 1 Utility 2 | . . . 2 Weapon 4 | . . . 4 Highest Loss Streak 9 | . . 2 9 To Critical Strikes . | . . . . Average Slot Usage (%) 85 | . 85 87 63 Engine 15 | . 14 16 13 Wheel 15 | . 28 15 6 Storage 11 | . 14 11 11 Protection 19 | . . 21 17 Ballistic Gun 21 | . 28 22 15 Naked Turns . | . . . . Heaviest Build 100 | 11 11 90 100 Greatest Support 26 | 26 26 26 16 Greatest Overweight (x) 30 | . . 5 30 Average Overweight (x) 1 | . . 2 10 Largest Inventory Capacity 25 | 8 8 25 25 Average Capacity 15 | 7 8 16 25 Most Carried 13 | 6 8 13 12 Average Carried 9 | 4 6 10 10 Final Capacity 25 | 8 8 25 25 Final Carried 13 | 6 8 13 9 Class Distribution -------------------- 100% | Mutant Dominant Class ---------------- Mutant | -10/Materials Mutant | -9/Materials Mutant | -9/Mines Resources | -11 -10 -9 -9 ----------- Run | Jun Mat Mat Min Matter Collected 425 | 249 . 141 35 Remotely . | . . . . Salvage Created 338 | . . 287 51 Parts 19 | . . 14 5 Haulers Intercepted . | . . . . Recyclers Shooed . | . . . . Parts Field Recycled . | . . . . Retrieved Matter . | . . . . Parts Self-Destructed . | . . . . Prevented . | . . . . Kills | -11 -10 -9 -9 ------- Run | Jun Mat Mat Min Combat Hostiles Destroyed 9 | . . 6 3 Guns 9 | . . 6 3 Classes Destroyed 4 | . . 3 1 Watcher 1 | . . 1 . Swarmer 3 | . . . 3 Grunt 5 | . . 5 . Sentry 1 | . . 1 . Best Kill Streak 3 | . . 3 3 Combat Bots Only 3 | . . 3 3 Max Kills in Single Turn 1 | . . 1 1 Gunslinging . | . . . . Exploded . | . . . . Melee . | . . . . Uniques/NPCs Destroyed . | . . . . Combat | -11 -10 -9 -9 -------- Run | Jun Mat Mat Min Damage Taken 1437 | . . 360 1077 Core 404 | . . 59 345 Absorbed by Shields . | . . . . Redirected to Shielding 77 | . . 13 64 Core Remaining (%) 100 | 100 100 . . Volleys Fired 34 | 1 . 24 9 Largest 2 | 2 . 2 2 Hottest 68 | 40 . 40 68 Shots Fired 65 | 2 . 48 15 Gun 64 | 2 . 48 14 Cannon 1 | . . . 1 Launcher . | . . . . Special . | . . . . Kinetic 64 | 2 . 48 14 Thermal 1 | . . . 1 Explosive . | . . . . Electromagnetic . | . . . . Robot Hit Streak 9 | . . 9 2 Robot Miss Streak 3 | . . 3 2 Penetration Max . | . . . . Secondary Targets 2 | . . 1 1 Max Gunslinging Chain 1 | . . 1 1 Shots Hit Robots 40 | . . 32 8 Core Hits 21 | . . 17 4 Critical Kills . | . . . . Critical Parts Destroyed . | . . . . Critical Strikes . | . . . . Melee Attacks . | . . . . Impact . | . . . . Slashing . | . . . . Piercing . | . . . . Sneak Attacks . | . . . . Combat Hostiles . | . . . . Follow-up Attacks . | . . . . Damage Inflicted 503 | . . 343 160 Guns 483 | . . 343 140 Cannons 20 | . . . 20 Explosions . | . . . . Melee . | . . . . Ramming . | . . . . Kinetic 483 | . . 343 140 Thermal 20 | . . . 20 Explosive . | . . . . Electromagnetic . | . . . . Impact . | . . . . Slashing . | . . . . Piercing . | . . . . Highest Corruption . | . . . . Average Corruption . | . . . . Corruption Purged . | . . . . Corruption Blocked . | . . . . Overload Shots . | . . . . Overflow Damage . | . . . . Projectiles . | . . . . Explosions . | . . . . Melee . | . . . . Knockbacks . | . . . . Impact . | . . . . Kinetic . | . . . . Secondary . | . . . . Self-Inflicted Damage . | . . . . Shots . | . . . . Rammed . | . . . . Targets Rammed . | . . . . Kicked . | . . . . Crushed . | . . . . Highest Temperature 24 | . . 23 24 Average Temperature 8 | . . 7 9 Received Heat Transfer 224 | . . 144 80 Siege Activations . | . . . . Robots Corrupted . | . . . . Combat Hostiles . | . . . . Parts Fried . | . . . . Impact Corruptions . | . . . . Robots Melted . | . . . . Combat Hostiles . | . . . . Parts Melted . | . . . . Heat Transferred 37 | . . . 37 Parts Sabotaged . | . . . . Parts Stolen . | . . . . Parts Stripped . | . . . . Power Chain Reactions . | . . . . Missiles Intercepted . | . . . . Alert | -11 -10 -9 -9 ------- Run | Jun Mat Mat Min Peak Influence 184 | . . 184 50 Initial . | . . . . Average 59 | . . 77 18 Maximum Alert Level . | . . . . Low Security (%) 100 | 100 100 100 100 Level 1 . | . . . . Level 2 . | . . . . Level 3 . | . . . . Level 4 . | . . . . Level 5 . | . . . . High Security . | . . . . Max Security . | . . . . Squads Dispatched 1 | . . 1 . Investigation 1 | . . 1 . Extermination . | . . . . Reinforcement . | . . . . Assault . | . . . . Garrison . | . . . . Intercept . | . . . . Searches Triggered . | . . . . Construction Impeded . | . . . . Haulers Reinforced . | . . . . Active Scanning Responses . | . . . . Cargo Convoy Interrupts . | . . . . Stealth | -11 -10 -9 -9 --------- Run | Jun Mat Mat Min Distress Signals 2 | . . 1 1 Communications Jammed . | . . . . Distress Signals . | . . . . Times Spotted 31 | . 1 13 17 Peak Tracking Total 13 | . 1 4 13 Tactical Retreats 1 | . . . 1 Traps | -11 -10 -9 -9 ------- Run | Jun Mat Mat Min Traps Triggered . | . . . . Indirectly . | . . . . Trap Hack Attempts . | . . . . Triggered . | . . . . Disarmed . | . . . . Reprogrammed . | . . . . Reused . | . . . . Traps Extracted . | . . . . Installed . | . . . . Triggered . | . . . . Machines | -11 -10 -9 -9 ---------- Run | Jun Mat Mat Min Machines Disabled . | . . . . Max in Single Turn . | . . . . Machines Repaired . | . . . . Machines Sabotaged . | . . . . Overloaded Fab Kills . | . . . . Hacking | -11 -10 -9 -9 --------- Run | Jun Mat Mat Min Machines Accessed 2 | . . 2 . Terminals 1 | . . 1 . Fabricators . | . . . . Repair Stations . | . . . . Recycling Units . | . . . . Scanalyzers 1 | . . 1 . Garrison Access . | . . . . Total Hacks 6 | . . 6 . Successful 4 | . . 4 . Failed 2 | . . 2 . Catastrophic . | . . . . Database Lockouts . | . . . . Manual . | . . . . Terminals 2 | . . 2 . Fabricators . | . . . . Repair Stations . | . . . . Recycling Units . | . . . . Scanalyzers 4 | . . 4 . Garrison Access . | . . . . Terminal Hacks . | . . . . Fabricator Hacks . | . . . . Repair Station Hacks . | . . . . Recycling Unit Hacks . | . . . . Scanalyzer 4 | . . 4 . Insert Component 2 | . . 2 . Analyze 2 | . . 2 . Garrison Access Hacks . | . . . . Unauthorized Hacks . | . . . . Terminals . | . . . . Fabricators . | . . . . Repair Stations . | . . . . Recycling Units . | . . . . Scanalyzers . | . . . . Garrison Access . | . . . . Data Cores Recovered . | . . . . Used . | . . . . Hacking Detections 2 | . . 2 . Full Trace Events 1 | . . 1 . Feedback Events . | . . . . Feedback Blocked . | . . . . Robot Schematics Acquired . | . . . . Robots Built . | . . . . Authchips . | . . . . Time . | . . . . Total Robot Build Rating . | . . . . Part Schematics Acquired 2 | . . 2 . Parts Built . | . . . . Authchips . | . . . . Time . | . . . . Total Part Build Rating . | . . . . Parts Repaired . | . . . . Time . | . . . . Parts Recycled . | . . . . Recycled Matter . | . . . . Retrieved Matter . | . . . . Retrieved Components . | . . . . Parts Scanalyzed 2 | . . 2 . Part Schematics Acquired 2 | . . 2 . Parts Damaged . | . . . . Bothacking | -11 -10 -9 -9 ------------ Run | Jun Mat Mat Min Used RIF Installer . | . . . . Robots Hacked . | . . . . Non-combat . | . . . . Combat . | . . . . Robot Hacks Applied . | . . . . Relay Couplers Released . | . . . . Fabnet Peak Effective % . | . . . . Robots Rewired . | . . . . Allies Hacked . | . . . . Hacks Repelled . | . . . . Allies | -11 -10 -9 -9 -------- Run | Jun Mat Mat Min Total Allies . | . . . . Largest Group . | . . . . Highest-Rated Group . | . . . . Highest-Rated Ally . | . . . . Total Orders . | . . . . Ally Attacks . | . . . . Total Damage . | . . . . Kills . | . . . . Allies Corrupted . | . . . . Allies Melted . | . . . . Intel | -11 -10 -9 -9 ------- Run | Jun Mat Mat Min Robot Analysis Total . | . . . . Derelict Logs Recovered . | . . . . Drone Launches . | . . . . Drone Recoveries . | . . . . Exploration | -11 -10 -9 -9 ------------- Run | Jun Mat Mat Min Turns Passed 742 | 97 39 557 49 Spaces Moved 505 | 92 41 367 5 Core 15 | 14 . . 1 Treads . | . . . . Legs . | . . . . Wheels 490 | 78 41 367 4 Hover . | . . . . Flight . | . . . . Fastest Speed 50 | 50 90 90 190 Average Speed 117 | 83 90 124 462 Slowest Speed 1550 | 90 90 175 1550 Overloaded Moves . | . . . . Propulsion Burnouts . | . . . . Robots Hopped . | . . . . Cave-ins Triggered . | . . . . Exploration Rate (%) 12 | 4 15 25 5 Regions Visited 3 Branch Regions 1 Pre-discovered Areas . | . . . . Known Exits Taken . | . . . . Unknown Exits Taken 3 | 1 1 1 . Scrap Searched . | . . . . Spaces Dug . | . . . . Terrain Destroyed . | . . . . Melee . | . . . . Projectile . | . . . . AOE . | . . . . Terrain Rammed . | . . . . Walls Destroyed . | . . . . Machines Disabled . | . . . . Actions | -11 -10 -9 -9 --------- Run | Jun Mat Mat Min Total 595 | 109 42 426 18 Wait 14 | . . 14 . Move 502 | 91 40 366 5 Hop . | . . . . Pick Up 26 | 11 2 13 . Fast Attach 1 | 1 . . . Attach 12 | 5 . 3 4 Detach . | . . . . Swap 1 | . . 1 . Drop 5 | . . 5 . Fire 34 | 1 . 24 9 Melee . | . . . . Ram . | . . . . Kick . | . . . . Crush . | . . . . Escape Stasis . | . . . . Rewire . | . . . . Trap . | . . . . Miscellaneous . | . . . . Route ------- -11/Junkyard -10/Materials -9/Materials -9/Mines History --------- Turn | Location | Event 37 | -11/Junkyard | Discovered new exit (range 14) 98 | -11/Junkyard | Entered Materials 128 | -10/Materials | Discovered new exit (range 8) 137 | -10/Materials | Entered another Materials area 137 | -9/Materials | Evolved 2 slots: Power x1, Utility x1 308 | -9/Materials | Build established: Mutant 318 | -9/Materials | Discovered new exit (range 15) 694 | -9/Materials | Entered Mines 695 | -9/Mines | Assembled infested the area 736 | -9/Mines | Core integrity fell below 50% 740 | -9/Mines | Core integrity fell below 20% 743 | -9/Mines | Destroyed by as-92815 with Assembled Blade Last Messages --------------- Assault Rifle destroyed. S-10 Pest destroyed. Acquired 20 matter. K-01 Serf collects debris. Acquired 15 matter. S-10 Pest destroyed. Switching to secondary target: as-92815. K-01 Serf collects debris. K-01 Serf destroyed. Com. Wheel destroyed. as-01181 destroyed. Imp. Ion Engine destroyed. Autogun destroyed. Ion Engine destroyed. as-00319 destroyed. Autogun destroyed. Utility Shielding destroyed. as-39562 suffers critical hit (Destroy). Core Shielding destroyed. as-93922 destroyed. Map ----- +----------------------------------------------------+ | ??????????????????????????????????????????????? | | ??????????????????????????????????????????????? | | ??????????????????????????????????????????????? | | ??????????????????????????????????????????????? | | ??????????????????????????????????????????????? | | ??????????????????????????????????????????????? | | ??????????????????????????????????????????????? | | ??????????????????????????????????????????????? | | ??????????????????????????????????????????????? | | ????????????????????????? ## ?????????????????? | | ????????????????????????? ?????????????????? | | ???????????????????????? ?????????????????? | | ???????????????????????? ?????????????????? | | ????????????????????????? ?????????????????? | | ????????????????????????? ?????????????????? | | ????????????????????????? #?????????????????? | | ????????????????????????? #?????????????????? | | ????????????????????????? ##????????????????? | | ?????????????????????????# #????????????????? | | ?????????????????????????# ##???????????????? | | ?????????????????????????# #???????????????? | | ?????????????????????????# a #???????????????? | | ?????????????????????????# a #????????????????? | | ?????????????????????????#aaa#????????????????? | | ????????????????????????##%aa#????????????????? | | ????????????????????????#@a=%#????????????????? | | ????????????????????????# a*=#????????????????? | | ????????????????????????## #????????????????? | | ?????????????????????????# #????????????????? | | ?????????????????????????# ???????????????? | | ?????????????????????????# ?????????????? | | ?????????????????????????# #### ????????????? | | ????????????????????????? #????#???????????? | | ????????????????????????? #????????????????? | | ????????????????????????? ##????????????????? | | ????????????????????????? ###?????????????????? | | ???????????????????????? #????????????????????? | | ????????????????????????#?????????????????????? | | ??????????????????????????????????????????????? | | ??????????????????????????????????????????????? | | ??????????????????????????????????????????????? | | ??????????????????????????????????????????????? | | | | | | | | | | | | | | | | | +----------------------------------------------------+ Best States ------------- Heat Dissipation 28 Energy Generation 17 Energy Capacity 415 Matter Stores 300 Matter Capacity 300 Sight Range 16 Terrain Scan Density 10 Core Shielding 20 Utility Shielding 33 Evasion (%) 50 Item Schematics ----------------- Lgt. Treads | -9/Materials | Scanalyzed Adv. Beam Cannon | -9/Materials | Scanalyzed Robot Schematics ------------------ None Fabricated ------------ Nothing Alien Tech Used ----------------- None Achievements -------------- Safety First Challenges ------------ None Game ------ Seed DisruptorGyrokineticSabre Manual? 0 Play Time 00:10:26 Cumulative 13.9 hours Start 2024.02.26 @ 23:56:44 End 2024.02.27 @ 00:06:09 Sessions 1 Manual Loads 0 Difficulty Rogue Special Mode None Game No. 26 Rogue 13 Adventurer 13 Explorer 0 Win Type - Total 0 Types 0/0/0/0/0/0/0/0/0 Lore% 13 Gallery% 18 Achievement% 14 Wizard Run 0 Options --------- ASCII 0 Keyboard 0 Movement Mouse Keybinds 0 Fullscreen 2 Font 18/SmallcapsGlow Map View 76x50 Tactical HUD 0 Map Filters NONE Filters NONE Steam 1 RUN: 7a6e69fc-874b-463a-adb2-21df8743b149